bitfinex-derivatives/quotes_BTCF0:USTF0_20250901
["timestamp","ask_amount","ask_price","bid_price","bid_amount"]
[1756693012309,0.91389,108020.0,108010.0,0.88518801]
[1756693012709,0.91389,108020.0,108010.0,0.54148]
[1756693013210,0.91389,108020.0,108010.0,0.75148]
[1756693013909,1.16389,108020.0,108010.0,0.4628]
[1756693014109,1.16389,108020.0,108010.0,0.3628]
[1756693014504,1.89062119,108020.0,108010.0,0.002]
[1756693014710,1.52982119,108020.0,108010.0,0.002]
[1756693015204,1.18611318,108020.0,108010.0,0.002]
[1756693015411,1.18715318,108020.0,108010.0,0.002]
[1756693015611,0.31655318,108020.0,108010.0,0.002]
[1756693015812,1.18691318,108020.0,108010.0,0.002]
[1756693016010,0.31655318,108020.0,108010.0,0.02584]
[1756693016315,0.31655318,108020.0,108010.0,1.38518801]
[1756693016316,0.01,108020.0,108010.0,1.38518801]
[1756693016515,0.8802,108020.0,108010.0,1.04148]
[1756693016715,0.8802,108020.0,108010.0,1.38518801]
[1756693017417,0.91453,108020.0,108010.0,0.79148]
[1756693017618,0.91453,108020.0,108010.0,1.13518801]
[1756693018014,0.91569,108020.0,108010.0,1.13518801]
[1756693019519,0.91569,108020.0,108010.0,0.092]
[1756693019716,0.93792917,108020.0,108010.0,0.092]
[1756693020217,1.53163718,108020.0,108010.0,0.002]
[1756693020912,1.18792917,108020.0,108010.0,0.002]
[1756693021119,1.53163718,108020.0,108010.0,0.002]
[1756693021312,1.89243718,108020.0,108010.0,0.002]
[1756693021519,0.01793,107990.0,107980.0,0.42870169]
[1756693021718,0.89941,107990.0,107980.0,0.77870169]
[1756693022715,0.89941,107990.0,107980.0,0.77970169]
[1756693022908,0.02913,107990.0,107980.0,0.77970169]
[1756693023114,0.87012,107990.0,107980.0,1.1234097]
[1756693023719,0.87212,107990.0,107980.0,1.1244097]
[1756693023919,0.002,107990.0,107980.0,1.1244097]
[1756693024319,0.7034,107990.0,107980.0,1.3744097]
[1756693024919,0.002,107990.0,107980.0,1.3744097]
[1756693025422,1.99065,108020.0,108010.0,0.05976]
[1756693025616,1.95632,108020.0,108010.0,1.12426801]
[1756693025818,0.03433,108030.0,108020.0,0.0361]
[1756693026013,0.0132,108040.0,108020.0,0.74446]
[1756693026215,0.03433,108040.0,108030.0,0.05976]
[1756693026419,0.92717782,108040.0,108030.0,0.42056]
[1756693026618,0.92717782,108040.0,108030.0,0.75056]
[1756693027118,0.04341782,108040.0,108030.0,1.09426801]
[1756693027318,0.91401782,108040.0,108030.0,1.09426801]
[1756693027520,0.92301782,108040.0,108030.0,1.09526801]
[1756693028320,0.93521782,108040.0,108030.0,0.75156]
[1756693028514,0.93521782,108040.0,108030.0,0.42156]
[1756693028718,0.93921782,108040.0,108030.0,0.38646]
[1756693029119,0.93921782,108040.0,108030.0,0.42256]
[1756693029824,0.93921782,108040.0,108030.0,0.38646]
[1756693030021,0.93921782,108040.0,108030.0,0.42256]
[1756693030222,1.18921782,108040.0,108030.0,0.38646]
[1756693030423,1.18921782,108040.0,108030.0,0.3628]
[1756693030821,1.53292583,108040.0,108030.0,0.002]
[1756693031520,1.89372583,108040.0,108030.0,0.002]
[1756693031718,0.01793,108020.0,108000.0,0.76097899]
[1756693031917,0.89993,108010.0,108000.0,1.10463899]
[1756693032318,0.89993,108010.0,108000.0,0.76093098]
[1756693032626,0.89993,108010.0,108000.0,0.08013098]
[1756693032815,0.89993,108010.0,108000.0,0.02037098]
[1756693033022,0.92220125,108010.0,108000.0,0.02037098]
[1756693033624,0.05140125,108010.0,108000.0,0.02037098]
[1756693033924,0.92248125,108010.0,108000.0,0.04503098]
[1756693034124,0.05140125,108010.0,108000.0,0.40503098]
[1756693034321,0.05140125,108010.0,108000.0,0.80193098]
[1756693034525,0.92464125,108010.0,108000.0,0.80193098]
[1756693034823,0.92776125,108010.0,108000.0,0.76583098]
[1756693035324,0.92776125,108010.0,108000.0,0.80193098]
[1756693036225,0.92776125,108010.0,108000.0,0.76583098]
[1756693037127,0.92776125,108010.0,108000.0,0.40583098]
[1756693038029,1.52146926,108010.0,108000.0,0.38217098]
[1756693038432,1.17776125,108010.0,108000.0,0.38217098]
[1756693039134,1.52146926,108010.0,108000.0,0.02137098]
[1756693039332,1.88226926,108010.0,108000.0,0.02137098]
[1756693040030,1.88226926,108010.0,107990.0,0.00462]
[1756693040230,0.73103801,108000.0,107990.0,0.00462]
[1756693040426,0.39250926,108000.0,107990.0,0.00462]
[1756693040631,0.75330926,108000.0,107990.0,0.00462]
[1756693041535,1.00530926,108000.0,107990.0,0.00562]
[1756693041736,0.99510926,108000.0,107970.0,0.42676228]
[1756693041937,0.99510926,108000.0,107970.0,0.82042228]
[1756693041938,0.01192,107980.0,107970.0,0.82042228]
[1756693042129,0.01192,107980.0,107970.0,0.41427314]
[1756693042436,0.0340972,107980.0,107970.0,0.02061314]
[1756693043031,0.37780521,107980.0,107970.0,0.02061314]
[1756693043336,0.01192,107970.0,107960.0,0.4346535]
[1756693043536,0.88248,107970.0,107960.0,0.8046535]
[1756693044232,0.88148,107970.0,107960.0,0.8046535]
[1756693044435,0.00358,107970.0,107960.0,1.0546535]
[1756693044637,0.87072,107970.0,107960.0,1.39836151]
[1756693044837,0.87272,107970.0,107960.0,1.40236151]
[1756693045039,0.002,107970.0,107960.0,1.40236151]
[1756693045237,0.87252,107970.0,107960.0,1.40236151]
[1756693045536,0.002,107970.0,107960.0,1.40236151]
[1756693045726,0.87236,107970.0,107960.0,1.40236151]
[1756693047843,0.002,107970.0,107960.0,1.40236151]
[1756693048044,0.87168,107970.0,107960.0,1.40236151]
[1756693048939,0.002,107970.0,107960.0,1.40236151]
[1756693050938,0.00558,107970.0,107960.0,1.0586535]
[1756693051139,0.00558,107970.0,107960.0,1.40236151]
[1756693051339,0.002,107970.0,107960.0,1.40236151]
[1756693051739,0.87088,107970.0,107960.0,1.40236151]
[1756693052646,0.002,107970.0,107960.0,1.40236151]
[1756693052847,0.87084,107970.0,107960.0,1.40236151]
[1756693053440,0.87442,107970.0,107960.0,1.40236151]
[1756693053644,0.87084,107970.0,107960.0,1.40236151]
[1756693054243,0.002,107970.0,107960.0,1.40236151]
[1756693054445,0.87052,107970.0,107960.0,1.40236151]
[1756693055747,0.002,107970.0,107960.0,1.40236151]
[1756693056647,0.15452,107980.0,107970.0,0.05883]
[1756693056846,0.15452,107980.0,107970.0,1.10333801]
[1756693057648,0.00558,107990.0,107970.0,1.10333801]
[1756693057848,0.88236,107990.0,107980.0,0.76333801]
[1756693058049,0.87678,107990.0,107980.0,1.03333801]
[1756693058248,0.88208,107990.0,107980.0,0.76333801]
[1756693058950,0.01452,107990.0,107980.0,0.41963]
[1756693059255,0.88512,107990.0,107980.0,0.42063]
[1756693059549,0.90730912,107990.0,107980.0,0.42063]
[1756693059948,0.90730912,107990.0,107980.0,0.69063]
[1756693060250,0.88512,107990.0,107980.0,0.42063]
[1756693060460,0.90731563,107990.0,107980.0,0.42063]
[1756693061250,0.90731563,107990.0,107980.0,0.69063]
[1756693061650,0.90731563,107990.0,107980.0,0.79063]
[1756693061858,0.90731563,107990.0,107980.0,0.42063]
[1756693062354,0.90731563,107990.0,107980.0,0.05983]
[1756693063053,0.90731563,107990.0,107980.0,0.02525]
[1756693063445,1.15731563,107990.0,107980.0,0.02525]
[1756693063646,1.50102364,107990.0,107980.0,0.001]
[1756693064350,1.15731563,107990.0,107980.0,0.001]
[1756693066652,1.15731563,107990.0,107980.0,0.02525]
[1756693067041,1.15731563,107990.0,107980.0,0.001]
[1756693068054,1.50102364,107990.0,107980.0,0.001]
[1756693068354,1.86182364,107990.0,107980.0,0.001]
[1756693068950,1.86182364,107990.0,107970.0,0.00463]
[1756693069150,0.35562801,107980.0,107970.0,0.00463]
[1756693069456,0.73862364,107980.0,107970.0,0.00463]
[1756693069858,0.37782364,107980.0,107970.0,0.00463]
[1756693070052,0.03411563,107980.0,107970.0,0.02888]
[1756693070250,0.90119563,107980.0,107970.0,0.03088]
[1756693070649,1.26199563,107980.0,107970.0,0.03088]
[1756693070850,0.39491563,107980.0,107970.0,0.03088]
[1756693071049,1.26199563,107980.0,107970.0,0.03088]
[1756693071258,1.26199563,107980.0,107970.0,0.00663]
[1756693071460,1.26199563,107980.0,107970.0,0.00763]
[1756693071756,1.27122863,107980.0,107970.0,0.00763]
[1756693071958,1.27122863,107980.0,107970.0,0.00663]
[1756693072158,1.27322863,107980.0,107970.0,0.00763]
[1756693073263,1.86693664,107980.0,107970.0,0.00763]
[1756693076061,0.99062364,107980.0,107970.0,0.00763]
[1756693076364,1.85770364,107980.0,107970.0,0.003]
[1756693077263,0.99062364,107980.0,107970.0,0.003]
[1756693077563,1.85770364,107980.0,107970.0,0.003]
[1756693079063,1.85766364,107980.0,107970.0,0.003]
[1756693079263,1.60766364,107980.0,107970.0,0.003]
[1756693079464,0.74062364,107980.0,107970.0,0.003]
[1756693079657,1.60766364,107980.0,107970.0,0.003]
[1756693080466,0.74062364,107980.0,107970.0,0.003]
[1756693080654,0.03611563,107980.0,107970.0,0.06183]
[1756693080860,0.90315563,107980.0,107970.0,0.06183]
[1756693081264,0.90315563,107980.0,107970.0,0.003]
[1756693081459,1.60766364,107980.0,107970.0,0.003]
[1756693081656,1.60766364,107980.0,107960.0,0.0486735]
[1756693081657,4.18482364,107980.0,107960.0,0.00463]
[1756693081957,0.96545935,107970.0,107960.0,0.00305]
[1756693082158,0.96545935,107970.0,107940.0,0.3608]
[1756693082159,1.32765498,107970.0,107940.0,0.3608]
[1756693082360,1.50331609,107960.0,107940.0,0.69509]
[1756693082561,1.16471172,107960.0,107940.0,0.73226]
[1756693082865,1.16471172,107960.0,107940.0,0.74164881]
[1756693083056,1.52551172,107960.0,107940.0,0.74164881]
[1756693084063,0.38299563,107960.0,107950.0,0.06146]
[1756693084264,1.25003563,107960.0,107950.0,0.06146]
[1756693084464,0.89323563,107960.0,107950.0,0.06146]
[1756693084665,0.02619563,107960.0,107950.0,0.06146]
[1756693084866,0.89523563,107960.0,107950.0,0.42226]
[1756693085065,0.02819563,107960.0,107950.0,0.42226]
[1756693085266,0.89523563,107960.0,107950.0,0.42226]
[1756693085568,0.89323563,107960.0,107950.0,0.42226]
[1756693085767,0.89723563,107960.0,107950.0,0.42326]
[1756693086070,0.89723563,107960.0,107950.0,1.01757625]
[1756693086261,0.89723563,107960.0,107950.0,1.04757625]
[1756693086561,0.02619563,107960.0,107950.0,1.39757625]
[1756693086763,0.01,107960.0,107950.0,1.39857625]
[1756693087270,0.87704,107960.0,107950.0,0.52426]
[1756693087565,0.87704,107960.0,107950.0,0.42426]
[1756693087766,0.87704,107960.0,107950.0,0.60426]
[1756693087967,0.87704,107960.0,107950.0,1.09857625]
[1756693088467,0.87704,107960.0,107950.0,0.75426]
[1756693088667,0.87704,107960.0,107950.0,1.09857625]
[1756693088864,0.87704,107960.0,107950.0,0.71709]
[1756693089064,1.22135625,107960.0,107950.0,0.38709]
[1756693089265,1.85436765,107960.0,107950.0,0.002]
[1756693092068,2.56816476,107960.0,107950.0,0.002]
[1756693093667,1.70112476,107960.0,107950.0,0.002]
[1756693093974,1.87196851,107960.0,107950.0,0.002]
[1756693094375,0.73732765,107960.0,107950.0,0.002]
[1756693094579,1.61248765,107960.0,107950.0,0.002]
[1756693095072,1.61228765,107960.0,107950.0,0.02629]
[1756693095277,1.61228765,107960.0,107950.0,0.06346]
[1756693095878,1.61228765,107960.0,107950.0,0.02629]
[1756693096880,0.73732765,107960.0,107950.0,0.06346]
[1756693097178,1.2676114,107960.0,107950.0,0.06346]
[1756693097380,0.3930114,107960.0,107950.0,0.06346]
[1756693097680,1.2671314,107960.0,107950.0,0.06346]
[1756693097872,1.2670114,107960.0,107950.0,0.02629]
[1756693098080,1.61132765,107960.0,107950.0,0.02629]
[1756693098379,1.61132765,107960.0,107950.0,0.002]
[1756693099581,1.61132765,107960.0,107950.0,0.06346]
[1756693099976,0.9063314,107960.0,107950.0,0.42426]
[1756693100181,0.9065714,107960.0,107950.0,1.00426]
[1756693100380,0.88436,107960.0,107950.0,1.00426]
[1756693100780,0.8842,107960.0,107950.0,1.00426]
[1756693101284,0.8842,107960.0,107950.0,1.01426]
[1756693102180,0.01,107960.0,107950.0,1.01426]
[1756693102575,0.88372,107960.0,107950.0,1.01426]
[1756693103382,0.90564164,107960.0,107950.0,1.01426]
[1756693103785,0.90564164,107960.0,107950.0,0.31346]
[1756693103979,2.32155789,107960.0,107950.0,0.002]
[1756693104181,1.87724164,107960.0,107950.0,0.002]
[1756693104485,2.22155789,107960.0,107950.0,0.002]
[1756693107784,1.34783789,107960.0,107950.0,0.002]
[1756693107984,2.22031789,107960.0,107950.0,0.02629]
[1756693108586,2.22031789,107960.0,107950.0,0.002]
[1756693109090,2.22003789,107960.0,107950.0,0.02629]
[1756693109284,1.09783789,107960.0,107950.0,0.02629]
[1756693109585,1.62564164,107960.0,107950.0,0.06346]
[1756693109786,0.75352164,107960.0,107950.0,0.06346]
[1756693110185,1.62536164,107960.0,107950.0,0.06346]
[1756693110580,0.03192164,107960.0,107950.0,1.35857625]
[1756693110981,0.8826,107960.0,107950.0,1.35857625]
[1756693111281,0.88264,107960.0,107950.0,1.35857625]
[1756693111782,1.95716,107980.0,107960.0,0.0926194]
[1756693111982,1.97896449,107980.0,107970.0,0.76657625]
[1756693112187,2.82996,107980.0,107970.0,1.07657625]
[1756693112481,1.95716,107980.0,107970.0,1.32657625]
[1756693112687,2.83,107980.0,107970.0,1.68737625]
[1756693113077,2.834,107980.0,107970.0,1.68737625]
[1756693113486,1.96116,107980.0,107970.0,1.68737625]
[1756693113682,2.83368,107980.0,107970.0,1.68737625]
[1756693113986,2.83468,107980.0,107970.0,1.68837625]
[1756693114386,2.83468,107980.0,107970.0,1.68937625]
[1756693114588,2.83968,107980.0,107970.0,1.68937625]
[1756693115587,0.88252,107980.0,107970.0,1.68937625]
[1756693116682,0.01,107980.0,107970.0,1.78198795]
[1756693116881,0.59656,107980.0,107970.0,1.78198795]
[1756693117589,0.01,107980.0,107970.0,1.78198795]
[1756693119986,0.02,107980.0,107970.0,1.09506]
[1756693120192,0.02,107980.0,107970.0,0.78506]
[1756693120386,0.03601,107980.0,107970.0,0.80506]
[1756693120688,0.03601,107980.0,107970.0,1.10506]
[1756693121290,0.03601,107980.0,107970.0,0.80506]
[1756693121791,0.03601,107980.0,107970.0,1.16506]
[1756693122188,0.63032625,107980.0,107970.0,0.38709]
[1756693122390,0.63032625,107980.0,107970.0,0.3628]
[1756693122586,0.63032625,107980.0,107970.0,0.02533]
[1756693122891,0.28601,107980.0,107970.0,0.38613]
[1756693123081,1.15661,107980.0,107970.0,0.06017]
[1756693123287,0.88124,107980.0,107970.0,1.11528625]
[1756693123589,0.88124,107980.0,107970.0,0.78528625]
[1756693123791,0.88124,107980.0,107970.0,0.38613]
[1756693123792,0.90725,107980.0,107970.0,0.38613]
[1756693123991,0.90725,107980.0,107970.0,0.42097]
[1756693124694,0.03601,107980.0,107970.0,0.66097]
[1756693124986,0.89753,107980.0,107970.0,0.76528625]
[1756693125191,0.89753,107980.0,107970.0,0.44097]
[1756693125391,0.90753,107980.0,107970.0,0.44097]
[1756693125986,0.90737,107980.0,107970.0,0.44097]
[1756693126386,0.03601,107980.0,107970.0,0.44097]
[1756693126583,0.90709,107980.0,107970.0,0.44097]
[1756693126993,0.90701,107980.0,107970.0,0.42097]
[1756693127292,0.90701,107980.0,107970.0,0.77097]
[1756693127594,0.03601,107980.0,107970.0,0.77097]
[1756693127787,0.90673,107980.0,107970.0,0.77097]
[1756693127983,0.01,107980.0,107970.0,1.11528625]
[1756693128197,0.01,107980.0,107970.0,1.45789825]
[1756693128496,0.04332,108010.0,108000.0,0.05817]
[1756693128797,1.29641264,108010.0,108000.0,0.05817]
[1756693129390,1.29641264,108010.0,108000.0,0.02333]
[1756693129598,1.29941264,108010.0,108000.0,0.02333]
[1756693130289,1.30441264,108010.0,108000.0,0.001]
[1756693130490,1.89872889,108010.0,108000.0,0.001]
[1756693131294,1.02776889,108010.0,108000.0,0.001]
[1756693131493,1.55357264,108010.0,108000.0,0.05917]
[1756693132195,0.94265264,108010.0,108000.0,0.05917]
[1756693133894,0.94265264,108010.0,108000.0,0.38917]
[1756693136496,0.94265264,108010.0,108000.0,0.001]
[1756693136497,1.89776889,108010.0,108000.0,0.001]
[1756693139003,1.89776889,108010.0,108000.0,0.00562]
[1756693139205,1.69735606,108010.0,108000.0,0.00562]
[1756693140105,1.94735606,108010.0,108000.0,0.00562]
[1756693140599,1.96388512,108010.0,108000.0,0.00562]
[1756693140804,0.0374,107990.0,107980.0,0.77270384]
[1756693141006,0.92769264,107990.0,107980.0,1.09270384]
[1756693141302,0.02133264,107990.0,107980.0,1.34270384]
[1756693141496,0.89029264,107990.0,107980.0,1.32822413]
[1756693141696,0.89029264,107990.0,107980.0,1.42082873]
[1756693141895,0.89029264,107990.0,107980.0,1.32822413]
[1756693142097,0.89029264,107990.0,107980.0,1.36345413]
[1756693142809,0.02133264,107990.0,107980.0,1.36545413]
[1756693143007,0.89117264,107990.0,107980.0,1.42382873]
[1756693143405,0.89117264,107990.0,107980.0,1.49916847]
[1756693143606,0.89117264,107990.0,107980.0,1.53339847]
[1756693143808,0.02233264,107990.0,107980.0,1.53339847]
[1756693144310,0.03671264,107990.0,107980.0,1.19079387]
[1756693144514,0.02233264,107990.0,107980.0,1.19079387]
[1756693144710,0.03671264,107990.0,107980.0,1.19079387]
[1756693145213,0.02233264,107990.0,107980.0,1.19079387]
[1756693146609,0.03671264,107990.0,107980.0,1.19079387]
[1756693146804,0.05973264,107990.0,107980.0,0.41033788]
[1756693147004,0.40404889,107990.0,107980.0,0.04669029]
[1756693147211,1.01484889,107990.0,107980.0,0.02336029]
[1756693147406,0.67053264,107990.0,107980.0,0.38629029]
[1756693147611,0.67053264,107990.0,107980.0,0.39540263]
[1756693147913,0.67053264,107990.0,107980.0,0.38629029]
[1756693148213,0.67053264,107990.0,107980.0,0.04629029]
[1756693148707,1.01484889,107990.0,107980.0,0.02336029]
[1756693148913,1.06459948,107990.0,107980.0,0.02336029]
[1756693150312,1.06459948,107990.0,107980.0,0.00898029]
[1756693152114,1.06459948,107990.0,107980.0,0.003]
[1756693152911,1.39459948,107990.0,107980.0,0.003]
[1756693153214,1.41096512,107990.0,107980.0,0.003]
[1756693153913,2.32088512,107990.0,107980.0,0.003]
[1756693154415,0.73664887,107990.0,107980.0,0.003]
[1756693154617,1.70088512,107990.0,107980.0,0.003]
[1756693155310,0.76484889,107990.0,107980.0,0.003]
[1756693155517,1.93577386,107990.0,107980.0,0.003]
[1756693155915,1.06453386,107990.0,107980.0,0.003]
[1756693156216,1.93597386,107990.0,107980.0,0.003]
[1756693157416,1.93601386,107990.0,107980.0,0.003]
[1756693159414,1.63596889,107990.0,107980.0,0.02593]
[1756693160218,1.63596889,107990.0,107980.0,0.06016]
[1756693160617,1.63596889,107990.0,107980.0,0.003]
[1756693161514,0.47021761,107990.0,107980.0,0.06016]
[1756693161716,1.29105264,107990.0,107980.0,0.06016]
[1756693162817,1.63536889,107990.0,107980.0,0.06016]
[1756693163722,0.76484889,107990.0,107980.0,0.06016]
[1756693163916,0.42053264,107990.0,107980.0,0.31016]
[1756693164116,1.29129264,107990.0,107980.0,0.31016]
[1756693164720,1.29117264,107990.0,107980.0,0.31016]
[1756693165422,1.63548889,107990.0,107980.0,0.31016]
[1756693165623,1.63548889,107990.0,107980.0,0.27593]
[1756693166325,1.63548889,107990.0,107980.0,0.31016]
[1756693166521,1.29117264,107990.0,107980.0,0.31016]
[1756693166723,1.63548889,107990.0,107980.0,0.31016]
[1756693167724,1.29117264,107990.0,107980.0,0.31016]
[1756693167926,1.63548889,107990.0,107980.0,0.27593]
[1756693168424,1.63548889,107990.0,107980.0,0.31016]
[1756693169022,1.29117264,107990.0,107980.0,0.31016]
[1756693169225,1.63548889,107990.0,107980.0,0.31016]
[1756693170428,1.63548889,107990.0,107980.0,0.27593]
[1756693172728,1.63548889,107990.0,107980.0,0.003]
[1756693172925,2.20548889,107990.0,107980.0,0.003]
[1756693174325,2.25517386,107990.0,107980.0,0.003]
[1756693174721,1.38453386,107990.0,107980.0,0.003]
[1756693174918,0.47021761,107990.0,107980.0,0.06234]
[1756693175124,1.68265386,107990.0,107980.0,0.06234]
[1756693175723,1.68265386,107990.0,107980.0,0.02625]
[1756693176126,1.68265386,107990.0,107980.0,0.06234]
[1756693177227,1.63296889,107990.0,107980.0,0.003]
[1756693177531,1.69908512,107990.0,107980.0,0.003]
[1756693177827,1.94900512,107990.0,107980.0,0.003]
[1756693178332,1.08096512,107990.0,107980.0,0.003]
[1756693178533,1.94900512,107990.0,107980.0,0.003]
[1756693178733,1.08096512,107990.0,107980.0,0.003]
[1756693178933,1.94896512,107990.0,107980.0,0.003]
[1756693179434,1.93264147,107990.0,107980.0,0.02625]
[1756693179934,1.06464147,107990.0,107980.0,0.003]
[1756693180124,4.15012889,107990.0,107980.0,0.003]
[1756693180634,3.28212889,107990.0,107980.0,0.003]
[1756693180833,3.84012889,107990.0,107980.0,0.06234]
[1756693181034,2.97212889,107990.0,107980.0,0.06234]
[1756693181229,3.84012889,107990.0,107980.0,0.02625]
[1756693181631,3.84012889,107990.0,107980.0,0.003]
[1756693181833,3.84012889,107990.0,107980.0,0.02625]
[1756693182331,3.84012889,107990.0,107980.0,0.003]
[1756693185939,4.08118923,107990.0,107980.0,0.003]
[1756693186237,4.13100698,107990.0,107980.0,0.003]
[1756693186636,4.08118923,107990.0,107980.0,0.003]
[1756693187836,3.83118923,107990.0,107980.0,0.003]
[1756693188038,4.08118923,107990.0,107980.0,0.003]
[1756693188239,4.42268205,107990.0,107980.0,0.003]
[1756693188542,4.14730546,107990.0,107980.0,0.003]
[1756693188937,4.42268205,107990.0,107980.0,0.003]
[1756693189140,4.14730546,107990.0,107980.0,0.003]
[1756693189538,4.14730546,107990.0,107980.0,0.002]
[1756693189738,4.15130546,107990.0,107980.0,0.002]
[1756693189940,4.22025823,107990.0,107980.0,0.002]
[1756693190939,4.22425823,107990.0,107980.0,0.001]
[1756693191331,3.35625823,107990.0,107980.0,0.001]
[1756693191532,2.79625823,107990.0,107980.0,0.001]
[1756693191740,3.71425823,107990.0,107980.0,0.02425]
[1756693192141,3.648142,107990.0,107980.0,0.02425]
[1756693193341,3.64787688,107990.0,107980.0,0.31034]
[1756693193648,3.598142,107990.0,107980.0,0.31034]
[1756693193944,3.30354762,107990.0,107980.0,0.31034]
[1756693195556,3.25381264,107990.0,107980.0,0.31034]
[1756693196053,3.598142,107990.0,107980.0,0.31034]
[1756693196266,3.64787698,107990.0,107980.0,0.31034]
[1756693197553,3.64787698,107990.0,107980.0,0.001]
[1756693198662,3.30354762,107990.0,107980.0,0.001]
[1756693198862,3.64787698,107990.0,107980.0,0.001]
[1756693199657,3.918142,107990.0,107980.0,0.001]
[1756693199858,3.96787698,107990.0,107980.0,0.001]
[1756693201367,4.21787698,107990.0,107980.0,0.001]
[1756693201561,4.168142,107990.0,107980.0,0.001]
[1756693201757,3.300142,107990.0,107980.0,0.001]
[1756693202063,4.168062,107990.0,107980.0,0.001]
[1756693204764,4.528862,107990.0,107980.0,0.001]
[1756693205766,3.31661264,107990.0,107980.0,0.02586]
[1756693205962,3.230942,107990.0,107980.0,0.06238]
[1756693206164,4.078822,107990.0,107980.0,0.06238]
[1756693206357,4.12858853,107990.0,107980.0,0.06238]
[1756693207366,3.14070853,107990.0,107980.0,0.06238]
[1756693207560,3.66425917,107990.0,107980.0,0.31238]
[1756693208766,3.958822,107990.0,107980.0,0.3155]
[1756693210274,3.61445264,107990.0,107980.0,0.3155]
[1756693210667,3.958782,107990.0,107980.0,0.3155]
[1756693211169,3.61445264,107990.0,107980.0,0.3155]
[1756693211769,3.958782,107990.0,107980.0,0.3155]
[1756693212770,3.61445264,107990.0,107980.0,0.3155]
[1756693213170,3.958782,107990.0,107980.0,0.3155]
[1756693213367,3.958782,107990.0,107980.0,0.00412]
[1756693214073,3.88979208,107990.0,107980.0,0.02898]
[1756693215275,3.88979208,107990.0,107980.0,0.00412]
[1756693215571,4.21979208,107990.0,107980.0,0.00412]
[1756693215776,4.26955861,107990.0,107980.0,0.00412]
[1756693216075,4.51955861,107990.0,107980.0,0.00412]
[1756693217582,4.53590831,107990.0,107980.0,0.00412]
[1756693217874,4.61876899,107990.0,107980.0,0.00412]
[1756693218069,4.5361237,107990.0,107980.0,0.00412]
[1756693218476,4.82777681,107990.0,107980.0,0.00412]
[1756693218776,4.81339681,107990.0,107940.0,0.03652]
[1756693218969,0.63613944,107950.0,107940.0,0.44138]
[1756693219172,1.52515208,107950.0,107940.0,0.02486]
[1756693219369,1.52515208,107950.0,107940.0,0.06138]
[1756693219568,0.65747208,107950.0,107940.0,0.06138]
[1756693219766,1.52515208,107950.0,107940.0,0.06138]
[1756693219971,0.38213264,107950.0,107940.0,0.06138]
[1756693220173,1.52515208,107950.0,107940.0,0.06238]
[1756693220773,1.52515208,107950.0,107940.0,0.06338]
[1756693220974,1.52615208,107950.0,107940.0,0.06338]
[1756693221177,0.65847208,107950.0,107940.0,0.06338]
[1756693221477,1.25081264,107950.0,107940.0,0.06338]
[1756693221675,1.52615208,107950.0,107940.0,0.02686]
[1756693221874,1.52615208,107950.0,107940.0,0.06338]
[1756693222073,1.25081264,107950.0,107940.0,0.06338]
[1756693222270,1.25081264,107950.0,107940.0,0.02686]
[1756693222571,1.25081264,107950.0,107940.0,0.002]
[1756693222572,1.59521003,107950.0,107940.0,0.002]
[1756693222768,1.60437267,107950.0,107940.0,0.002]
[1756693222971,1.60437267,107950.0,107940.0,0.06338]
[1756693222972,1.25081264,107950.0,107940.0,0.06338]
[1756693223167,1.59521003,107950.0,107940.0,0.06338]
[1756693223868,1.25081264,107950.0,107940.0,0.06338]
[1756693224071,0.02233264,107950.0,107940.0,0.98777739]
[1756693224272,0.89001264,107950.0,107940.0,0.98777739]
[1756693224477,1.25081264,107950.0,107940.0,0.31338]
[1756693224774,1.25081264,107950.0,107940.0,0.06338]
[1756693224978,1.59521003,107950.0,107940.0,0.002]
[1756693225168,1.25081264,107950.0,107940.0,0.02686]
[1756693225365,1.25086975,107950.0,107940.0,0.02686]
[1756693226269,0.38318975,107950.0,107940.0,0.06338]
[1756693226476,1.25090975,107950.0,107940.0,0.06338]
[1756693226976,1.25086975,107950.0,107940.0,0.06338]
[1756693227279,1.25086975,107950.0,107940.0,0.65777739]
[1756693227280,0.02238975,107950.0,107940.0,0.65777739]
[1756693227480,1.25086975,107950.0,107940.0,1.01777739]
[1756693227685,1.25086975,107950.0,107940.0,0.65777739]
[1756693227980,1.25086975,107950.0,107940.0,0.98777739]
[1756693228168,0.89006975,107950.0,107940.0,1.01777739]
[1756693230174,0.02238975,107950.0,107940.0,1.01777739]
[1756693230379,0.89006975,107950.0,107940.0,1.01777739]
[1756693230580,0.02238975,107950.0,107940.0,1.37857739]
[1756693230780,0.86868,107950.0,107940.0,1.37857739]
[1756693233580,0.86868,107950.0,107940.0,1.39857739]
[1756693234280,0.86868,107950.0,107940.0,1.05418]
[1756693234481,1.25087703,107950.0,107940.0,0.40338]
[1756693234683,1.59527442,107950.0,107940.0,0.15686]
[1756693235179,1.59527442,107950.0,107940.0,0.132]
[1756693235379,1.84527442,107950.0,107940.0,0.132]
[1756693235579,1.84527442,107950.0,107940.0,0.002]
[1756693236181,1.84519442,107950.0,107940.0,0.06148]
[1756693236385,1.50079703,107950.0,107940.0,0.06148]
[1756693237281,1.50079703,107950.0,107940.0,0.02661]
[1756693237782,1.50079703,107950.0,107940.0,0.06148]
[1756693237783,0.38319703,107950.0,107940.0,0.06148]
[1756693238088,1.25079703,107950.0,107940.0,0.06148]
[1756693239284,0.38319703,107950.0,107940.0,0.06148]
[1756693239484,0.38319703,107950.0,107940.0,0.99587739]
[1756693239485,0.88995703,107950.0,107940.0,0.99587739]
[1756693239682,0.88995703,107950.0,107940.0,0.76587739]
[1756693239987,0.88995703,107950.0,107940.0,1.01587739]
[1756693240385,1.58995703,107950.0,107940.0,1.01587739]
[1756693240786,1.58995703,107950.0,107940.0,0.67148]
[1756693240988,1.58995703,107950.0,107940.0,1.01587739]
[1756693241788,1.58995703,107950.0,107940.0,1.03228]
[1756693241987,1.56856,107950.0,107940.0,1.37667739]
[1756693243188,1.56856,107950.0,107940.0,1.00587739]
[1756693243391,1.58997664,107950.0,107940.0,0.06148]
[1756693243999,1.58997664,107950.0,107940.0,0.62694921]
[1756693244194,1.58997664,107950.0,107940.0,0.33694921]